bitfinex/quotes_ETHUSD_20230118
["timestamp","ask_amount","ask_price","bid_price","bid_amount"]
[1674044380429,0.066,1580.1,1579.8,14.10132]
[1674044380765,14.85827347,1580.2,1579.8,14.16732]
[1674044381311,15.74091451,1580.2,1579.8,14.16732]
[1674044381487,15.74091451,1580.2,1579.8,25.19582]
[1674044381917,14.74458004,1580.2,1579.8,25.19582]
[1674044382336,15.74091451,1580.2,1579.8,25.19582]
[1674044383053,1.29144005,1580.1,1579.8,11.0945]
[1674044383263,6.45825401,1580.0,1579.8,11.0945]
[1674044383486,0.19514401,1580.0,1579.8,11.0945]
[1674044383806,19.71704521,1580.1,1579.8,11.0945]
[1674044384019,7.05910521,1580.1,1579.8,17.42439]
[1674044385947,6.39491,1580.1,1579.8,17.42439]
[1674044386157,0.066,1580.1,1579.8,23.7543]
[1674044386368,14.38348347,1580.2,1579.8,23.7543]
[1674044387321,8.05491347,1580.2,1579.8,30.08421]
[1674044387533,8.93755451,1580.2,1579.8,30.08421]
[1674044387742,7.94122004,1580.2,1579.8,30.08421]
[1674044388073,8.93755451,1580.2,1579.8,30.08421]
[1674044388514,7.94122004,1580.2,1579.8,30.08421]
[1674044388650,7.058579,1580.2,1579.8,30.08421]
[1674044388859,7.058579,1580.2,1579.8,33.725641]
[1674044388860,6.39438379,1580.2,1579.8,33.725641]
[1674044389130,6.39438379,1580.2,1579.9,3.0]
[1674044389301,6.39438379,1580.2,1579.9,10.76633]
[1674044389528,6.39438379,1580.2,1579.9,10.83233]
[1674044390668,0.06600379,1580.2,1579.9,10.83233]
[1674044390856,3.79e-06,1580.2,1580.0,1.083233]
[1674044391063,3.79e-06,1580.2,1579.9,23.49135]
[1674044392558,3.79e-06,1580.2,1580.0,4.54962407]
[1674044392900,3.79e-06,1580.2,1580.1,3.0]
[1674044395108,3.79e-06,1580.2,1580.1,9.32871]
[1674044395304,3.79e-06,1580.2,1580.1,9.39471]
[1674044395517,3.79e-06,1580.2,1580.1,11.744156]
[1674044396068,3.79e-06,1580.2,1580.1,25.838576]
[1674044396372,3.79e-06,1580.2,1580.1,26.068576]
[1674044396547,3.79e-06,1580.2,1580.1,29.18520007]
[1674044396768,3.79e-06,1580.2,1580.1,13.411156]
[1674044397128,3.79e-06,1580.2,1580.1,10.83171]
[1674044397271,3.79e-06,1580.2,1580.1,17.16042]
[1674044397482,3.79e-06,1580.2,1580.1,17.39042]
[1674044398488,3.79e-06,1580.2,1580.1,11.06171]
[1674044398805,3.79e-06,1580.2,1580.1,10.03445399]
[1674044400173,3.79e-06,1580.2,1580.1,10.03217903]
[1674044400323,3.79e-06,1580.2,1580.1,3.70346903]
[1674044400688,3.79e-06,1580.2,1580.1,3.63746903]
[1674044400840,0.65440539,1580.2,1580.1,3.63746903]
[1674044401408,0.65440539,1580.2,1580.1,0.63474399]
[1674044401746,6.98271539,1580.2,1580.1,0.63474399]
[1674044401934,20.97622295,1580.2,1580.1,0.63474399]
[1674044402263,20.97622295,1580.2,1579.8,11.0945]
[1674044402264,7.38404776,1580.0,1579.8,11.0945]
[1674044402427,8.8772316,1580.0,1579.8,11.0945]
[1674044402630,15.2065516,1580.0,1579.8,11.0945]
[1674044402840,24.11416195,1580.0,1579.8,0.066]
[1674044403050,23.63926195,1580.0,1579.6,25.62224]
[1674044403313,23.63926195,1580.0,1579.6,19.2918]
[1674044403469,13.3136916,1579.9,1579.6,19.2918]
[1674044403681,13.3796916,1579.9,1579.6,19.2918]
[1674044404233,13.3796916,1579.9,1579.6,11.1746]
[1674044405790,20.37085195,1579.9,1579.6,11.1746]
[1674044406033,19.7094616,1579.9,1579.6,11.1746]
[1674044406209,14.08751384,1579.8,1579.6,11.1746]
[1674044406423,14.15351384,1579.8,1579.6,11.1746]
[1674044407251,14.15351384,1579.8,1579.6,0.066]
[1674044407464,14.15351384,1579.8,1579.5,8.5065]
[1674044407465,14.15351384,1579.8,1579.5,8.5725]
[1674044407941,14.15351384,1579.8,1579.5,0.066]
[1674044408103,14.15351384,1579.8,1579.5,3.0]
[1674044408741,20.48380384,1579.8,1579.5,3.0]
[1674044408942,0.6544016,1579.7,1579.5,3.0]
[1674044409273,6.9848816,1579.7,1579.4,26.01253]
[1674044409467,6.9848816,1579.7,1579.4,18.10413]
[1674044409468,13.3813616,1579.7,1579.4,18.10413]
[1674044409672,13.3813616,1579.7,1579.4,11.7729]
[1674044409924,19.7118416,1579.7,1579.4,11.7729]
[1674044410098,7.75798384,1579.6,1579.4,11.7729]
[1674044410301,14.15478384,1579.6,1579.4,11.7729]
[1674044410546,20.48558384,1579.6,1579.4,0.066]
[1674044410739,20.48558384,1579.6,1579.3,10.8949742]
[1674044410740,20.48558384,1579.6,1579.3,10.9609742]
[1674044411514,20.48558384,1579.6,1579.3,3.0753742]
[1674044411677,20.48558384,1579.6,1579.3,3.0093742]
[1674044413350,21.92758384,1579.6,1579.3,3.0093742]
[1674044413616,6.9857316,1579.5,1579.3,3.0093742]
[1674044413770,7.0517316,1579.5,1579.3,3.0093742]
[1674044416771,13.3830616,1579.5,1579.3,0.0093742]
[1674044419122,19.7143916,1579.5,1579.3,0.0093742]
[1674044419273,20.1893916,1579.5,1579.3,0.0093742]
[1674044419964,13.8580616,1579.5,1579.3,0.0093742]
[1674044422762,13.8580616,1579.5,1579.3,0.00554036]
[1674044425010,13.85573356,1579.5,1579.3,0.00554036]
[1674044428539,1.38557336,1579.4,1579.3,0.00554036]
[1674044428768,7.71708336,1579.4,1579.3,0.00554036]
[1674044428986,7.78308336,1579.4,1579.3,0.00554036]
[1674044432468,14.11459336,1579.4,1579.3,0.00554036]
[1674044432677,20.44610336,1579.4,1579.3,0.00554036]
[1674044439828,21.69134622,1579.4,1579.3,0.00554036]
[1674044440055,22.02629034,1579.4,1579.3,0.00554036]
[1674044440371,22.87518617,1579.4,1579.3,0.00554036]
[1674044440587,22.02629034,1579.4,1579.3,0.00554036]
[1674044441106,22.68962953,1579.4,1579.3,0.00554036]
[1674044441317,21.69329506,1579.4,1579.3,0.00554036]
[1674044444390,22.68962953,1579.4,1579.3,0.00554036]
[1674044445439,21.69329506,1579.4,1579.3,0.00554036]
[1674044446237,22.68962953,1579.4,1579.3,0.00554036]
[1674044447968,22.02629034,1579.4,1579.3,0.00554036]
[1674044448367,22.87518617,1579.4,1579.3,0.00290415]
[1674044448615,22.02629034,1579.4,1579.3,0.00290415]
[1674044451585,25.14291441,1579.4,1579.3,0.00290415]
[1674044451795,25.14291441,1579.4,1579.1,0.01688616]
[1674044451796,1.02299924,1579.2,1579.1,0.01688616]
[1674044451945,22.25691896,1579.2,1579.0,0.01688616]
[1674044452150,0.4751,1579.1,1578.8,0.07648211]
[1674044452408,0.4751,1579.1,1578.8,12.74422211]
[1674044452592,0.4751,1579.1,1578.8,12.81022211]
[1674044453328,0.4751,1579.1,1578.8,6.47635211]
[1674044456839,6.80784,1579.1,1578.8,0.14248211]
[1674044457083,6.80784,1579.1,1578.8,0.07648211]
[1674044457084,6.39874,1579.1,1578.8,0.07648211]
[1674044457238,12.73148,1579.1,1578.8,0.07648211]
[1674044457417,13.39522392,1579.1,1578.8,0.07648211]
[1674044457623,19.72796392,1579.1,1578.8,0.07648211]
[1674044457850,1.97279639,1579.0,1578.8,0.07648211]
[1674044458057,6.33323,1579.0,1578.8,0.07648211]
[1674044458266,6.39923,1579.0,1578.7,25.45310435]
[1674044460560,12.73246,1579.0,1578.7,19.11699435]
[1674044460770,12.73246,1579.0,1578.7,19.11899435]
[1674044463657,12.73246,1579.0,1578.7,19.01899435]
[1674044465935,19.72943392,1579.0,1578.7,0.066]
[1674044466289,19.72943392,1579.0,1578.5,31.90036694]
[1674044467126,19.72943392,1579.0,1578.6,3.0]
[1674044469712,20.20463392,1579.0,1578.6,3.0]
[1674044471190,21.2002498,1579.0,1578.6,3.0]
[1674044471822,20.20463392,1579.0,1578.6,3.0]
[1674044472078,21.2002498,1579.0,1578.6,3.0]
[1674044473448,20.20463392,1579.0,1578.6,3.0]
[1674044473609,21.2002498,1579.0,1578.6,3.0]
[1674044473818,20.20463392,1579.0,1578.6,3.0]
[1674044475638,3.68742226,1578.9,1578.6,3.0]
[1674044475816,6.80912,1578.8,1578.6,3.0]
[1674044476029,6.87512,1578.8,1578.6,3.0]
[1674044476245,6.39992,1578.8,1578.6,3.0]
[1674044482702,6.39992,1578.8,1578.7,0.76709023]
[1674044483740,6.39992,1578.8,1578.5,25.56542694]
[1674044484549,13.39758392,1578.8,1578.5,0.09097853]
[1674044484875,13.39758392,1578.8,1578.5,0.02497853]
[1674044484876,8.00783,1578.7,1578.5,0.02497853]
[1674044485102,8.07383,1578.7,1578.5,0.02497853]
[1674044485510,14.40836,1578.7,1578.5,0.02497853]
[1674044488243,15.07210392,1578.7,1578.5,0.02497853]
[1674044489304,21.40663392,1578.7,1578.5,0.02497853]
[1674044489854,1.207,1578.6,1578.5,0.02497853]
[1674044490065,20.21116,1578.6,1578.5,0.02497853]
[1674044490278,20.27716,1578.6,1578.5,0.02497853]
[1674044492169,0.066,1578.6,1578.5,0.02497853]
[1674044492380,13.21019,1578.7,1578.5,0.02497853]
[1674044492535,19.54477,1578.7,1578.5,0.02497853]
[1674044493006,20.20851392,1578.7,1578.5,0.02497853]
[1674044493604,13.21019,1578.7,1578.5,0.02497853]
[1674044494466,6.87567,1578.7,1578.5,0.02497853]
[1674044495997,0.5413,1578.7,1578.5,6.36004853]
[1674044496207,0.4753,1578.7,1578.5,6.42604853]
[1674044496474,13.20931,1578.8,1578.5,6.42604853]
[1674044496982,13.87305392,1578.8,1578.5,6.42604853]
[1674044498647,1.20494392,1578.8,1578.5,12.76116853]
[1674044498862,1.13894392,1578.8,1578.5,12.76116853]
[1674044499964,0.66374392,1578.7,1578.5,12.76116853]
[1674044500098,0.66374392,1578.7,1578.5,0.09097853]
[1674044500099,19.66790392,1578.6,1578.5,0.09097853]
[1674044500309,21.51302054,1578.6,1578.5,0.02497853]
[1674044501313,0.066,1578.6,1578.5,0.02497853]
[1674044501530,15.6014898,1578.7,1578.5,0.02497853]
[1674044501836,8.27129392,1578.7,1578.5,0.02497853]
[1674044502049,2.06706851,1578.6,1578.5,0.02497853]
[1674044502365,14.73650851,1578.6,1578.5,0.02497853]
[1674044502671,8.46778851,1578.6,1578.5,0.02497853]
[1674044503269,21.13722851,1578.6,1578.5,0.02497853]
[1674044503495,15.27780851,1578.6,1578.5,0.02497853]
[1674044503666,14.80250851,1578.6,1578.5,0.02497853]
[1674044505931,14.80250851,1578.6,1578.5,0.02143267]
[1674044506354,21.13722851,1578.6,1578.5,0.02143267]
[1674044506683,22.13284439,1578.6,1578.5,0.02143267]
[1674044507305,21.13722851,1578.6,1578.5,0.02143267]
[1674044510828,19.89728939,1578.6,1578.5,0.02143267]
[1674044511040,13.56256939,1578.6,1578.5,0.02143267]
[1674044511292,14.80286375,1578.6,1578.5,0.02143267]
[1674044513031,21.13758375,1578.6,1578.5,0.02143267]
[1674044513242,22.67446653,1578.6,1578.5,0.02143267]
[1674044513709,22.13328364,1578.6,1578.5,0.02143267]
[1674044513922,0.89312939,1578.6,1578.5,0.02143267]
[1674044514138,0.82712939,1578.6,1578.5,0.02143267]
[1674044516075,19.73347711,1578.7,1578.5,0.02143267]
[1674044516282,7.06434711,1578.7,1578.5,0.02143267]
[1674044517338,6.40053,1578.7,1578.5,0.02143267]
[1674044517560,7.06434711,1578.7,1578.5,0.02143267]
[1674044519048,7.53964711,1578.7,1578.5,0.02143267]
[1674044519377,7.06434711,1578.7,1578.5,0.02143267]
[1674044520461,0.72981711,1578.7,1578.5,0.02143267]
[1674044520628,8.57068916,1578.7,1578.5,0.02143267]
[1674044520998,8.05978299,1578.7,1578.5,0.02143267]
[1674044521669,7.06416711,1578.7,1578.5,0.02143267]
[1674044521874,8.05978299,1578.7,1578.5,0.02143267]
[1674044524342,7.06416711,1578.7,1578.5,0.02143267]
[1674044524748,7.06170311,1578.7,1578.5,0.02143267]
[1674044524979,8.05731899,1578.7,1578.5,0.02143267]
[1674044526034,7.06170311,1578.7,1578.5,0.02143267]
[1674044526190,0.72735311,1578.7,1578.5,0.66646663]
[1674044526396,16.31058693,1578.8,1578.5,0.66646663]
[1674044526397,15.04909909,1578.8,1578.5,0.66646663]
[1674044526626,0.57706138,1578.7,1578.5,0.66646663]
[1674044527770,13.72980588,1578.8,1578.5,0.66646663]
[1674044527997,0.57700815,1578.7,1578.5,0.66646663]
[1674044528355,0.066,1578.8,1578.6,2.05364666]
[1674044528504,22.42769909,1578.9,1578.6,2.05364666]
[1674044528713,0.57408324,1578.8,1578.6,2.05364666]
[1674044529065,0.57408324,1578.8,1578.6,8.38835666]
[1674044529278,1.04928324,1578.8,1578.6,8.45435666]
[1674044529454,15.72496588,1578.9,1578.6,8.45435666]
[1674044529664,0.57399849,1578.8,1578.6,8.45435666]
[1674044531667,9.39121588,1578.9,1578.7,1.07543567]
[1674044531668,0.066,1578.9,1578.7,1.07543567]
[1674044531863,7.32882588,1579.0,1578.7,7.40973567]
[1674044532073,0.57386919,1578.9,1578.7,7.47573567]
[1674044534229,7.39482588,1579.0,1578.7,7.47573567]
[1674044534443,1.06161588,1579.0,1578.7,13.81005567]
[1674044534603,2.2330433,1579.0,1578.7,13.81005567]
[1674044534812,1.23742742,1578.9,1578.7,13.81005567]
[1674044535137,1.65934773,1579.0,1578.7,13.81005567]
[1674044535348,2.23296175,1579.0,1578.7,13.81005567]
[1674044535805,0.66373185,1579.0,1578.7,13.81005567]
[1674044536033,1.23730459,1579.0,1578.7,13.81005567]
[1674044536332,1.23730459,1579.0,1578.8,1.38100557]
[1674044537356,1.23730459,1579.0,1578.8,7.71492557]
[1674044537604,1.23730459,1579.0,1578.8,7.78092557]
[1674044538519,0.66373185,1579.0,1578.8,7.78092557]
[1674044538730,1.23711686,1579.0,1578.8,7.78092557]
[1674044539155,14.86628773,1579.1,1578.8,7.78092557]
[1674044539659,1.23710015,1579.0,1578.8,7.78092557]
[1674044540361,14.86619773,1579.1,1578.8,7.78092557]
[1674044540521,1.72534773,1579.1,1578.9,0.77809256]
[1674044540877,2.20044773,1579.2,1578.9,21.22153256]
[1674044541032,1.13883185,1579.2,1578.9,21.28753256]
[1674044541241,0.66373185,1579.2,1578.9,19.84453256]
[1674044541451,0.66373185,1579.1,1578.9,19.84453256]
[1674044542236,1.65934773,1579.2,1578.9,19.84453256]
[1674044542396,2.23253232,1579.2,1578.9,19.84453256]
[1674044542608,0.66373185,1579.1,1578.9,19.84453256]
[1674044542811,1.65934773,1579.2,1578.9,19.84453256]
[1674044543022,2.23244793,1579.2,1578.9,19.84453256]
[1674044543476,0.66373185,1579.2,1578.9,19.84453256]
[1674044543653,2.23243915,1579.2,1578.9,19.84453256]
[1674044544331,1.23682327,1579.1,1578.9,19.84453256]
[1674044544548,0.66373185,1579.1,1578.9,19.84453256]
[1674044544761,6.99607185,1579.2,1578.9,0.066]
[1674044544977,1.23680911,1579.1,1578.8,11.0079]
[1674044545165,6.33312,1579.0,1578.8,11.0079]
[1674044545345,7.06285185,1579.0,1578.8,11.0079]
[1674044545557,13.39597185,1579.0,1578.8,11.0079]
[1674044546136,1.23690835,1578.9,1578.8,0.066]
[1674044546351,20.23746835,1578.9,1578.5,0.08743267]
[1674044546502,19.73029185,1578.9,1578.5,0.02143267]
[1674044546712,21.57000094,1578.9,1578.5,0.02143267]
[1674044547465,0.66373185,1578.8,1578.5,0.02143267]
[1674044547773,13.33200185,1578.8,1578.5,0.02143267]
[1674044548122,13.39800185,1578.8,1578.5,0.02143267]
[1674044549266,13.39800185,1578.8,1578.5,0.0183782]
[1674044549815,6.40001,1578.8,1578.5,0.0183782]
[1674044550121,0.066,1578.8,1578.5,19.2536682]
[1674044550336,0.72973185,1578.9,1578.5,19.3196682]
[1674044550487,25.20594254,1579.0,1578.5,23.09525921]
[1674044550698,17.42959254,1579.0,1578.5,23.09525921]
[1674044551351,23.76293254,1579.0,1578.5,23.09525921]
[1674044553380,1.23731312,1578.9,1578.5,19.3196682]
[1674044553691,7.57094312,1578.9,1578.5,19.3196682]
[1674044553869,7.63694312,1578.9,1578.5,19.3196682]
[1674044554076,7.06336185,1578.9,1578.5,19.3196682]
[1674044556432,13.39699185,1578.9,1578.5,12.9845482]
[1674044556772,1.33969918,1578.8,1578.5,12.9845482]
[1674044557963,1.33969918,1578.8,1578.5,12.7545482]
[1674044558212,7.67363918,1578.8,1578.5,0.0843782]
[1674044558455,7.73963918,1578.8,1578.5,0.0183782]
[1674044559123,14.07357918,1578.8,1578.5,0.0183782]
[1674044559286,0.73955822,1578.7,1578.5,0.0183782]
[1674044562916,20.40628007,1578.7,1578.5,0.0183782]
[1674044563128,20.47228007,1578.7,1578.5,0.0183782]
[1674044564742,21.46789595,1578.7,1578.5,0.0183782]
[1674044565773,21.31350488,1578.7,1578.5,0.0183782]
[1674044565981,14.00913918,1578.6,1578.5,0.0183782]
[1674044566229,14.07513918,1578.6,1578.5,0.0183782]
[1674044567711,7.74041918,1578.6,1578.5,0.0183782]
[1674044567936,0.066,1578.6,1578.5,0.0183782]
[1674044568086,6.33434,1578.7,1578.5,0.0183782]
[1674044568453,6.40034,1578.7,1578.5,0.0183782]
[1674044568609,7.06407185,1578.7,1578.5,0.0183782]
[1674044569796,6.40034,1578.7,1578.5,0.0183782]
[1674044569981,12.73468,1578.7,1578.5,0.0183782]
[1674044571548,19.73275185,1578.7,1578.5,0.0183782]
[1674044571914,20.57510107,1578.7,1578.5,0.0183782]
[1674044573917,21.57071695,1578.7,1578.5,0.0183782]
[1674044574655,20.57510107,1578.7,1578.5,0.0183782]
[1674044575855,21.57071695,1578.7,1578.5,0.0183782]
[1674044576067,1.23770952,1578.6,1578.5,0.0183782]
[1674044576330,20.24186952,1578.6,1578.5,0.0183782]
[1674044576536,21.3034854,1578.6,1578.5,0.01523692]
[1674044576696,20.30786952,1578.6,1578.5,0.01523692]
[1674044581325,20.63975355,1578.6,1578.5,0.01523692]
[1674044581544,21.96724139,1578.6,1578.5,0.01523692]
[1674044581750,21.11505355,1578.6,1578.5,0.01523692]
[1674044582144,20.63975355,1578.6,1578.5,0.01523692]
[1674044582323,13.97294079,1578.6,1578.5,0.01523692]
[1674044582878,13.97314858,1578.6,1578.5,0.01523692]
[1674044583867,12.73544,1578.6,1578.5,0.01523692]
[1674044584061,13.97323467,1578.6,1578.5,0.01523692]
[1674044584310,12.73544,1578.6,1578.5,0.01523692]
[1674044584520,20.30797109,1578.6,1578.5,0.01523692]
[1674044587594,20.30552004,1578.6,1578.5,0.01523692]
[1674044588165,12.73298895,1578.6,1578.5,0.01523692]
[1674044588387,6.39826895,1578.6,1578.5,0.01523692]
[1674044589053,0.066,1578.6,1578.5,2.00223692]
[1674044589271,7.47330312,1578.7,1578.5,2.00223692]
[1674044589272,0.72952312,1578.7,1578.5,2.00223692]
[1674044589443,16.73869822,1578.8,1578.5,9.81399831]
[1674044589795,0.72952312,1578.8,1578.5,15.24811831]
[1674044589946,0.66352312,1578.8,1578.5,21.58305831]
[1674044590163,1.23791411,1578.8,1578.5,21.58305831]
[1674044591575,1.23791411,1578.8,1578.5,15.24793831]
[1674044591794,1.23791411,1578.8,1578.6,1.52479383]
[1674044592721,7.57185411,1578.8,1578.6,1.52479383]
[1674044593050,7.53866312,1578.8,1578.6,1.52479383]
[1674044593206,14.393019,1578.8,1578.5,13.26237831]
[1674044593419,1.23797488,1578.7,1578.5,11.78573692]
[1674044593623,7.57246488,1578.7,1578.5,11.78573692]
[1674044593888,7.06401312,1578.7,1578.5,11.78573692]
[1674044597040,13.39850312,1578.7,1578.5,11.78573692]
[1674044599613,7.06401312,1578.7,1578.5,11.78573692]
[1674044601421,0.72952312,1578.7,1578.5,11.78573692]
[1674044601627,0.66352312,1578.7,1578.5,11.78573692]
[1674044601860,1.23826637,1578.7,1578.5,11.78573692]
[1674044604423,7.57261637,1578.7,1578.5,11.78573692]
[1674044604615,13.39822312,1578.7,1578.5,11.78573692]
[1674044606212,14.393839,1578.7,1578.5,11.78573692]
[1674044606586,1.23828258,1578.6,1578.5,11.78573692]
[1674044606838,7.57300258,1578.6,1578.5,11.78573692]
[1674044607007,7.63900258,1578.6,1578.5,0.08123692]
[1674044607210,7.63900258,1578.6,1578.5,0.01523692]
[1674044608201,13.97372258,1578.6,1578.5,0.01523692]
[1674044609482,13.97372258,1578.6,1578.5,0.01138217]
[1674044609976,7.63900258,1578.6,1578.5,0.01138217]
[1674044610361,7.06424312,1578.6,1578.5,0.01138217]
[1674044610566,6.40072,1578.6,1578.5,0.01138217]
[1674044610783,0.066,1578.6,1578.5,0.97838217]
[1674044610992,14.394119,1578.7,1578.5,0.97838217]
[1674044611628,13.39850312,1578.7,1578.5,0.97838217]
[1674044611837,0.72952312,1578.7,1578.5,0.97838217]
[1674044612048,0.66352312,1578.7,1578.5,7.31345217]
[1674044612271,1.23224948,1578.7,1578.5,7.37945217]
[1674044613303,1.23224948,1578.7,1578.5,8.27606948]
[1674044613776,1.23224948,1578.7,1578.5,14.61118948]
[1674044614146,0.66352312,1578.7,1578.5,14.61118948]
[1674044614490,0.99561588,1578.8,1578.5,20.94630948]
[1674044614491,0.66352312,1578.8,1578.5,20.94630948]
[1674044614682,2.22782056,1578.8,1578.6,2.09463095]
[1674044614898,0.66352312,1578.8,1578.6,8.42929095]
[1674044615121,1.23215583,1578.8,1578.6,8.49529095]
[1674044618780,0.66352312,1578.7,1578.6,0.066]
[1674044619137,1.23215583,1578.7,1578.5,0.01138217]
[1674044619472,1.23215583,1578.7,1578.5,0.00938217]
[1674044620842,14.392979,1578.8,1578.5,0.00938217]
[1674044621061,8.059059,1578.8,1578.5,0.00938217]
[1674044621222,1.23229896,1578.7,1578.5,0.00938217]
[1674044621645,0.66352312,1578.7,1578.5,0.00938217]
[1674044621873,1.23230798,1578.7,1578.5,0.00938217]
[1674044625336,7.56665798,1578.7,1578.5,0.00938217]
[1674044625554,7.06387312,1578.7,1578.5,0.00938217]
[1674044626213,8.059489,1578.7,1578.5,0.00938217]
[1674044626368,1.23265028,1578.6,1578.5,0.00938217]
[1674044626587,1.23265258,1578.6,1578.5,0.00938217]
[1674044629331,7.56737258,1578.6,1578.5,0.00938217]
[1674044629548,7.63337258,1578.6,1578.5,0.00938217]
[1674044629750,1.29865258,1578.6,1578.5,0.00938217]
[1674044629963,1.23278592,1578.6,1578.5,7.31150217]
[1674044630157,0.66352312,1578.7,1578.5,7.37750217]
[1674044630384,1.2327788,1578.7,1578.5,20.04774217]
[1674044630776,0.66352312,1578.7,1578.5,20.04774217]
[1674044631399,0.66352312,1578.7,1578.5,23.06967616]
[1674044632832,1.659139,1578.8,1578.5,23.06967616]
[1674044633140,2.228305,1578.8,1578.5,23.06967616]
[1674044633347,0.66352312,1578.8,1578.5,23.06967616]
[1674044633519,1.23265304,1578.8,1578.5,23.06967616]
[1674044633721,1.23265304,1578.8,1578.6,1.87661999]
[1674044633930,1.23265304,1578.8,1578.6,12.66916]
[1674044634142,1.23265304,1578.8,1578.6,12.73516]
[1674044635649,0.66352312,1578.9,1578.8,6.33392]
[1674044635859,0.66352312,1578.9,1578.8,6.39992]
[1674044636492,0.66352312,1578.9,1578.8,12.73384]
[1674044636760,0.66352312,1578.9,1578.8,14.783718]
[1674044637341,1.659139,1579.0,1578.8,14.783718]
[1674044637545,0.66352312,1579.0,1578.8,21.117638]
[1674044637788,0.66352312,1579.0,1578.8,25.43026207]
[1674044638002,1.659139,1579.1,1578.8,25.43026207]
[1674044638188,2.20869301,1579.1,1578.8,25.43026207]
[1674044638753,0.66352312,1579.1,1578.8,25.43026207]
[1674044638966,1.21307129,1579.1,1578.8,25.43026207]
[1674044639118,1.21307129,1579.1,1579.0,6.33312]
[1674044639332,0.66352312,1579.1,1579.0,12.73224]
[1674044639794,1.659139,1579.2,1579.0,12.73224]
[1674044640006,2.20836604,1579.2,1579.0,12.73224]
[1674044641652,2.56753015,1579.3,1579.1,1.197]
[1674044641864,0.86176789,1579.4,1579.2,1.201]
[1674044642092,0.79576789,1579.4,1579.2,13.86564]
[1674044642281,0.79576789,1579.4,1579.2,20.26396]
[1674044642919,0.79576789,1579.4,1579.3,3.11662407]
[1674044643136,0.13224477,1579.4,1579.3,13.86082]
[1674044643358,0.13224477,1579.4,1579.3,13.92682]
[1674044644008,0.13224477,1579.4,1579.3,7.36491]
[1674044647471,0.13022295,1579.4,1579.3,7.36491]
[1674044660621,0.13022295,1579.4,1579.3,13.69682]
[1674044661340,0.13022295,1579.4,1579.3,1.033]
[1674044661553,0.13022295,1579.4,1579.3,13.63082]
[1674044661742,0.13022295,1579.4,1579.3,13.69682]
[1674044664867,0.13022295,1579.4,1579.3,0.066]
[1674044665184,1.15022295,1579.4,1579.2,11.147]
[1674044665550,2.15022295,1579.4,1579.2,11.147]
[1674044666008,0.13022295,1579.4,1579.2,11.147]
[1674044669024,1.33592813,1579.4,1579.2,11.14429367]
[1674044669252,0.79374607,1579.4,1579.2,11.14429367]
[1674044670288,7.12526607,1579.4,1579.2,11.14429367]
[1674044670617,0.71252661,1579.3,1579.2,11.14429367]
[1674044671285,7.19126607,1579.4,1579.2,0.066]
[1674044671433,7.19126607,1579.4,1579.1,15.66485]
[1674044671434,7.19126607,1579.4,1579.1,15.73085]
[1674044671644,0.19622295,1579.4,1579.1,22.06357]
[1674044671909,0.13022295,1579.4,1579.2,3.11662407]
[1674044672061,0.12385903,1579.4,1579.3,13.86082]
[1674044672275,0.12385903,1579.4,1579.3,13.92682]
[1674044672485,0.12385903,1579.4,1579.3,7.36491]
[1674044672905,0.12385903,1579.4,1579.3,0.066]
[1674044673118,0.97890643,1579.4,1579.2,6.39805]
[1674044673435,1.52163372,1579.4,1579.2,6.39805]
[1674044673646,0.97890643,1579.4,1579.2,6.39805]
[1674044674899,0.66352312,1579.3,1579.2,0.066]
[1674044675109,0.66352312,1579.3,1579.1,22.0635]
[1674044675375,1.20630316,1579.3,1579.1,3.066]
[1674044675603,1.80415344,1579.2,1579.0,26.37918]
[1674044675749,1.68352312,1579.2,1579.0,26.37918]
[1674044676160,1.68352312,1579.2,1579.0,20.0462]
[1674044676404,1.68352312,1579.2,1579.0,11.7263]
[1674044677376,1.659139,1579.2,1579.0,11.7263]
[1674044677568,2.19680953,1579.2,1579.0,11.7263]
[1674044677948,8.52914953,1579.2,1579.0,11.7263]
[1674044678171,8.057479,1579.2,1579.0,11.7263]
[1674044679050,1.20138625,1579.1,1579.0,11.7263]
[1674044679577,1.20138625,1579.1,1579.0,0.066]
[1674044679732,1.20138625,1579.1,1578.8,23.60896]
[1674044680827,1.20138625,1579.1,1578.8,10.9413]
[1674044680998,2.865139,1579.0,1578.8,0.066]
[1674044681359,1.20131712,1578.9,1578.7,11.0941]
[1674044681573,15.71791763,1579.0,1578.7,11.0941]
[1674044681911,9.38447763,1579.0,1578.7,17.42837]
[1674044682204,8.38886175,1579.0,1578.7,17.42837]
[1674044683004,1.93552312,1579.0,1578.7,20.54499407]
[1674044683210,11.127039,1579.1,1578.9,6.33352]
[1674044683429,1.20088073,1579.0,1578.9,6.39952]
[1674044683886,0.66352312,1579.0,1578.9,6.39952]
[1674044684271,0.66352312,1579.1,1578.9,19.06656]
[1674044684472,0.66352312,1579.2,1578.9,20.58380159]
[1674044684684,1.20082627,1579.2,1578.9,20.58380159]
[1674044687637,1.20082627,1579.2,1579.0,0.23]
[1674044688060,1.20082627,1579.2,1579.1,6.33272]
[1674044688270,1.20082627,1579.2,1579.1,6.39872]
[1674044689568,1.20082627,1579.2,1579.1,12.73144]
[1674044690067,1.20082627,1579.2,1579.1,6.39872]
[1674044691078,2.19644215,1579.2,1579.1,6.39872]
[1674044691364,1.20082627,1579.2,1579.1,6.39872]
[1674044691727,2.19644215,1579.2,1579.1,0.066]
[1674044691940,1.20082627,1579.2,1579.0,12.96163]
[1674044692205,2.19644215,1579.2,1579.0,12.96163]
[1674044692799,1.659139,1579.2,1579.0,12.96163]
[1674044693014,1.2009138,1579.2,1579.0,12.96163]
[1674044693208,0.66352312,1579.2,1579.0,12.96163]
[1674044693413,1.20092217,1579.2,1579.0,12.96163]
[1674044694064,1.20092217,1579.2,1579.0,12.95961116]
[1674044696784,1.20092217,1579.2,1579.0,6.39872]
[1674044699286,2.19653805,1579.2,1579.0,6.39872]
[1674044700214,2.19653805,1579.2,1579.0,0.066]
[1674044700439,2.19653805,1579.2,1578.9,0.066]
[1674044700746,6.33352,1578.9,1578.8,0.7881493]
[1674044700922,16.12603669,1578.9,1578.8,0.7221493]
[1674044701128,15.4622047,1578.9,1578.8,0.7221493]
[1674044702005,15.4622047,1578.9,1578.6,20.1056]
[1674044702163,1.20134086,1578.8,1578.6,20.1056]
[1674044702843,14.59298181,1578.9,1578.6,12.0095]
[1674044703231,15.58874746,1578.9,1578.6,12.0095]
[1674044703957,13.39698181,1578.9,1578.6,12.0095]
[1674044704644,7.06346181,1578.9,1578.6,18.34421]
[1674044706081,0.066,1578.9,1578.6,34.13027407]
[1674044706457,0.66394181,1579.0,1578.6,35.33627407]
[1674044706607,1.19829297,1579.0,1578.6,35.33627407]
[1674044707689,16.6497808,1579.1,1578.6,35.33627407]
[1674044708028,16.6497808,1579.1,1578.6,40.29563569]